bitfinex-derivatives/quotes_BTCF0:USTF0_20251210
["timestamp","ask_amount","ask_price","bid_price","bid_amount"]
[1765393969208,0.010752,93008.0,92999.0,0.3608]
[1765393969411,0.00316132,93011.0,93002.0,0.0107525]
[1765393969612,0.0107521,93007.0,93004.0,0.0107523]
[1765393969914,0.0107521,93007.0,92999.0,0.3608]
[1765393969915,0.3608,93005.0,92996.0,0.0107532]
[1765393970117,0.3608,93005.0,92990.0,0.3715539]
[1765393970118,0.6777535,92994.0,92990.0,0.3715539]
[1765393970411,0.31817379,93006.0,92996.0,0.0107532]
[1765393970712,0.31817379,93006.0,92990.0,0.3608]
[1765393970713,0.31817379,93006.0,93000.0,0.3608]
[1765393970902,0.010751,93017.0,93000.0,0.3608]
[1765393971107,0.0107526,93003.0,93001.0,0.0107527]
[1765393971313,0.0127521,93007.0,93004.0,0.0107524]
[1765393971611,0.002,93007.0,93004.0,0.0107524]
[1765393972012,0.0107522,93006.0,93004.0,0.0107524]
[1765393972609,0.6777535,92994.0,92982.0,0.3608]
[1765393972817,0.002,93006.0,92994.0,0.0107535]
[1765393973010,0.002,93006.0,93004.0,0.0107523]
[1765393973314,0.002,93006.0,93001.0,0.3715527]
[1765393973315,0.667,93005.0,93001.0,0.3715527]
[1765393973614,0.002,93006.0,93005.0,0.0107523]
[1765393974123,0.002,93006.0,93005.0,0.6776323]
[1765393974311,0.00016132,93011.0,93010.0,0.0107517]
[1765393974618,0.01073364,93146.0,93010.0,0.0107517]
[1765393974619,0.0107491,93033.0,93026.0,0.0107498]
[1765393974914,0.3608,93044.0,93026.0,0.0107498]
[1765393975108,0.6777498,93026.0,93025.0,0.3608]
[1765393975515,0.010751,93016.0,93014.0,0.0107511]
[1765393975707,0.010751,93016.0,93010.0,0.3608]
[1765393975708,0.00016132,93024.0,93017.0,0.0107508]
[1765393975902,0.0107508,93018.0,93017.0,0.0107509]
[1765393976108,0.01091152,93024.0,93010.0,0.3608]
[1765393976309,0.01091152,93024.0,93023.0,0.6776302]
[1765393976310,0.00016132,93024.0,93023.0,0.6776302]
[1765393977311,0.00016132,93024.0,93023.0,0.0107502]
[1765393977514,0.00516132,93024.0,93023.0,0.0117502]
[1765393978213,0.00516132,93024.0,93023.0,0.001]
[1765393978403,0.00516132,93024.0,93023.0,0.0117502]
[1765393978810,0.00516132,93024.0,93023.0,0.001]
[1765393979009,0.00516132,93024.0,93023.0,0.0117502]
[1765393979316,0.01591142,93024.0,93023.0,0.0117502]
[1765393979512,0.70135142,93024.0,93023.0,0.001]
[1765393979711,0.33190132,93024.0,93023.0,0.0117502]
[1765393979917,0.00516132,93024.0,93023.0,0.0117502]
[1765393980310,0.00516132,93024.0,93023.0,0.68131]
[1765393980515,0.2022,93047.0,93043.0,0.3657179]
[1765393980714,0.0107477,93045.0,93043.0,0.3657179]
[1765393980910,0.2022,93047.0,93039.0,0.3608]
[1765393980911,0.0107482,93040.0,93039.0,0.3608]
[1765393981520,0.0107482,93040.0,93039.0,0.3715483]
[1765393981820,0.010748,93043.0,93042.0,0.68031]
[1765393982209,0.2022,93047.0,93039.0,0.3608]
[1765393982418,0.2022,93047.0,93046.0,0.68031]
[1765393982607,0.2022,93047.0,93045.0,0.0107475]
[1765393982807,0.004,93040.0,93039.0,0.3715483]
[1765393983113,0.010749,93034.0,93031.0,0.3608]
[1765393983321,0.7083893,93031.0,93030.0,0.00016121]
[1765393983626,0.3608,93037.0,93023.0,0.0107502]
[1765393983921,0.10748931,93036.0,93020.0,0.3608]
[1765393984112,0.7083892,93032.0,93031.0,0.3608]
[1765393984419,0.19717,93043.0,93034.0,0.0107488]
[1765393984608,0.2072,93047.0,93044.0,0.0107477]
[1765393984809,0.005,93047.0,93046.0,0.6910575]
[1765393985111,0.563,93065.0,93048.0,0.68031]
[1765393985421,0.563,93065.0,93046.0,0.0107475]
[1765393985422,0.3608,93065.0,93046.0,0.0107475]
[1765393985621,0.31817379,93060.0,93041.0,0.7216]
[1765393985814,0.3608,93056.0,93041.0,0.7323481]
[1765393986120,0.3608,93056.0,93000.0,0.20028]
[1765393986121,0.69764,93034.0,93033.0,0.3608]
[1765393986421,0.0107484,93039.0,93037.0,0.0107486]
[1765393986718,0.0127474,93047.0,93046.0,0.35497]
[1765393986924,0.002,93047.0,93046.0,1.04111]
[1765393987122,0.002,93047.0,93046.0,0.3608]
[1765393987419,0.002,93047.0,93037.0,0.3608]
[1765393987623,0.0107475,93046.0,93037.0,0.3608]
[1765393987823,0.002,93047.0,93046.0,0.68183]
[1765393988122,0.00216121,93049.0,93048.0,0.67263]
[1765393988614,0.00216121,93049.0,93046.0,0.3608]
[1765393988815,0.0107473,93048.0,93046.0,0.3608]
[1765393989010,0.002,93047.0,93046.0,0.3608]
[1765393989425,0.35135,93047.0,93046.0,0.3608]
[1765393989720,0.01290841,93049.0,93046.0,0.3608]
[1765393990525,0.00216121,93049.0,93048.0,0.67263]
[1765393991115,0.3608,93076.0,93062.0,0.0107456]
[1765393991116,0.0107449,93069.0,93062.0,0.0107456]
[1765393991420,0.0107453,93066.0,93062.0,0.0107456]
[1765393992015,0.0107456,93063.0,93059.0,0.3608]
[1765393992322,0.00016121,93070.0,93069.0,0.67263]
[1765393992525,0.3715425,93090.0,93089.0,0.67263]
[1765393992733,0.3715425,93090.0,93080.0,0.0107436]
[1765393992734,0.0107429,93087.0,93080.0,0.0107436]
[1765393993226,0.3608,93090.0,93079.0,0.3608]
[1765393993523,0.3608,93090.0,93083.0,0.0107432]
[1765393993822,0.0107429,93087.0,93086.0,0.34577]
[1765393994027,0.0107426,93089.0,93086.0,0.34577]
[1765393994827,0.0107436,93080.0,93079.0,0.3608]
[1765393995123,0.6867936,93080.0,93079.0,0.3608]
[1765393995329,0.0107436,93080.0,93079.0,0.3608]
[1765393995821,0.3608,93090.0,93075.0,0.00016121]
[1765393995822,0.010744,93077.0,93075.0,0.00016121]
[1765393997320,0.0107446,93072.0,93069.0,0.31096121]
[1765393998125,0.0107457,93063.0,93060.0,0.3608]
[1765393998718,0.00016121,93071.0,93062.0,0.34577]
[1765393998923,0.00016121,93071.0,93060.0,0.3608]
[1765393999124,0.0107455,93065.0,93060.0,0.3608]
[1765393999432,0.00016121,93071.0,93061.0,0.0107458]
[1765393999625,0.0107456,93064.0,93060.0,0.3608]
[1765393999825,0.0107467,93053.0,93052.0,0.00016121]
[1765394000332,0.20276,93043.0,93013.0,0.3608]
[1765394000629,0.3608,93027.0,93003.0,0.3608]
[1765394000934,0.3608,93019.0,93012.0,0.0107514]
[1765394001120,0.3608,93019.0,93003.0,0.3608]
[1765394001323,0.0107523,93006.0,93003.0,0.3608]
[1765394001521,0.0107523,93006.0,93002.0,0.00016121]
[1765394001725,0.34935,93003.0,93002.0,0.00016121]
[1765394001926,0.67605,93003.0,93002.0,0.00016121]
[1765394002126,0.0107549,92983.0,92968.0,0.3608]
[1765394002332,0.3608,92986.0,92977.0,0.3608]
[1765394002629,0.0107539,92991.0,92985.0,0.6833846]
[1765394002937,0.3608,92995.0,92994.0,0.67263]
[1765394003233,0.3608,93004.0,92985.0,0.3609613]
[1765394003234,0.0107544,92987.0,92985.0,0.3609613]
[1765394003436,0.67605,92986.0,92985.0,0.3609613]
[1765394003623,1.03685,92986.0,92985.0,0.0001613]
[1765394004028,0.0107554,92978.0,92977.0,0.3608]
[1765394004227,0.0107559,92974.0,92967.0,0.0107567]
[1765394004432,0.0107563,92971.0,92962.0,0.3608]
[1765394004633,0.67605,92970.0,92962.0,0.3608]
[1765394004826,0.0107569,92965.0,92959.0,0.3608]
[1765394005230,0.0107574,92962.0,92959.0,0.3608]
[1765394005428,0.67897379,92970.0,92959.0,0.3608]
[1765394005734,0.67897379,92970.0,92960.0,0.0107575]
[1765394006049,0.67897379,92970.0,92959.0,0.3608]
[1765394006236,0.010758,92956.0,92953.0,0.0001613]
[1765394006438,0.3608,92960.0,92953.0,0.0109195]
[1765394006742,0.010758,92956.0,92953.0,0.0001613]
[1765394006933,0.3608,92960.0,92953.0,0.0001613]
[1765394007139,0.3608,92960.0,92959.0,0.67263]
[1765394007436,0.3608,92968.0,92959.0,0.67263]
[1765394007741,0.0107569,92965.0,92959.0,0.67263]
[1765394007936,0.3608,92968.0,92953.0,0.0041613]
[1765394008137,0.3608,92968.0,92959.0,0.003]
[1765394008341,0.3572675,92960.0,92959.0,0.003]
[1765394008938,0.7003082,92954.0,92953.0,1e-08]
[1765394009127,0.7003082,92954.0,92923.0,0.3608]
[1765394009128,0.3608,92954.0,92923.0,0.3608]
[1765394009435,0.0107613,92927.0,92910.0,0.0107633]
[1765394009736,0.0107613,92927.0,92909.0,0.3608]
[1765394009737,0.31817379,92920.0,92909.0,0.3608]
[1765394009938,0.3608,92937.0,92925.0,0.32445]
[1765394010131,0.0107612,92928.0,92922.0,0.0001614]
[1765394010335,0.68955,92923.0,92922.0,0.0001614]
[1765394010736,0.3608,92923.0,92903.0,8.536e-05]
[1765394011039,0.3608,92923.0,92907.0,0.0107635]
[1765394011339,0.0107623,92919.0,92907.0,0.0107635]
[1765394011837,0.01085715,92948.0,92907.0,0.0107635]
[1765394011838,0.0001614,92940.0,92933.0,0.0107606]
[1765394012037,0.0001614,92940.0,92928.0,0.3608]
[1765394012235,0.10762524,92939.0,92928.0,0.3608]
[1765394012537,0.0107606,92934.0,92928.0,0.3608]
[1765394012726,0.21730282,92938.0,92928.0,0.3608]
[1765394013436,0.3609614,92940.0,92937.0,0.65081]
[1765394013640,0.002,92939.0,92935.0,0.0107603]
[1765394013839,0.002,92939.0,92938.0,0.65081]
[1765394014240,0.0001614,92940.0,92938.0,0.65081]
[1765394014438,0.0107601,92937.0,92928.0,0.3608]
[1765394014635,0.58010282,92938.0,92928.0,0.3608]
[1765394014831,0.21930282,92938.0,92934.0,0.0107604]
[1765394015036,0.002,92938.0,92934.0,0.0107604]
[1765394015238,0.002,92938.0,92937.0,0.65081]
[1765394015439,0.002,92938.0,92937.0,0.3608]
[1765394015741,0.0001614,92940.0,92937.0,0.3608]
[1765394015930,0.0001614,92940.0,92928.0,0.3608]
[1765394015931,0.68955,92938.0,92928.0,0.3608]
[1765394016131,0.22806292,92938.0,92928.0,0.3608]
[1765394016332,0.002,92939.0,92928.0,0.3608]
[1765394016538,0.0001614,92940.0,92938.0,0.65081]
[1765394016738,0.0001614,92940.0,92939.0,0.6615699]
[1765394017443,0.0001614,92940.0,92937.0,0.3608]
[1765394017643,0.002,92939.0,92935.0,0.0107603]
[1765394018148,0.01276,92939.0,92931.0,0.0107608]
[1765394018348,0.002,92939.0,92928.0,0.3608]
[1765394018533,0.01076,92938.0,92932.0,0.0107607]
[1765394018735,0.002,92939.0,92932.0,0.0107607]
[1765394018944,0.01076,92939.0,92932.0,0.0107607]
[1765394019142,0.0107614,92927.0,92913.0,0.3608]
[1765394019342,0.22806382,92930.0,92913.0,0.3608]
[1765394019739,0.0107622,92920.0,92913.0,0.3608]
[1765394019939,0.21730282,92923.0,92917.0,0.0107624]
[1765394020338,0.22806462,92923.0,92917.0,0.0107624]
[1765394020546,0.21730282,92923.0,92921.0,0.0107619]
[1765394020848,0.0107615,92926.0,92921.0,0.3608]
[1765394021039,0.0107621,92921.0,92914.0,0.0107627]
[1765394021345,0.0107621,92921.0,92913.0,0.3608]
[1765394021346,0.0107628,92914.0,92913.0,0.3608]
[1765394021545,0.0107612,92928.0,92910.0,0.56548]
[1765394021844,0.0107626,92916.0,92911.0,0.0107632]
[1765394022049,0.0107625,92917.0,92910.0,0.3715632]
[1765394022249,0.0107625,92917.0,92913.0,0.0107629]
[1765394022434,0.0107618,92923.0,92916.0,0.0107625]
[1765394022639,0.0001614,92928.0,92927.0,0.6615713]
[1765394025951,0.0001614,92928.0,92927.0,0.65081]
[1765394026955,0.0107613,92927.0,92925.0,0.0107614]
[1765394027148,0.0107616,92925.0,92922.0,0.3608]
[1765394027350,0.0001614,92928.0,92927.0,0.65081]
[1765394027741,0.0107617,92924.0,92922.0,0.3608]
[1765394028057,0.0001614,92928.0,92925.0,0.0107614]
[1765394028251,0.0001614,92928.0,92925.0,0.0117614]
[1765394028648,0.0109227,92928.0,92925.0,0.0117614]
[1765394029048,0.0109227,92928.0,92925.0,0.001]
[1765394029253,0.0107616,92925.0,92922.0,0.3725618]
[1765394029553,0.0001614,92928.0,92927.0,0.65081]
[1765394031344,0.0107589,92948.0,92947.0,0.32445]
[1765394031747,0.0107597,92941.0,92938.0,0.01076]
[1765394031947,0.010761,92931.0,92930.0,0.0107609]
[1765394032152,0.3715595,92943.0,92930.0,0.0107609]
[1765394032153,0.0107606,92933.0,92930.0,0.0107609]
[1765394032354,0.0107602,92937.0,92936.0,0.65081]
[1765394032543,0.0107598,92940.0,92939.0,0.65081]
[1765394032749,0.0001614,92941.0,92940.0,0.65081]
[1765394033057,0.0107582,92955.0,92954.0,0.6615681]
[1765394033355,0.0107582,92955.0,92954.0,0.65081]
[1765394033563,0.0107582,92955.0,92950.0,0.3608]
[1765394033564,0.0107585,92951.0,92950.0,0.3608]
[1765394033751,0.0107598,92941.0,92938.0,0.3608]
[1765394034056,0.3608,92956.0,92940.0,0.0107597]
[1765394034057,0.21730282,92948.0,92940.0,0.0107597]
[1765394034254,0.21730282,92948.0,92938.0,0.3608]
[1765394034459,0.0107599,92940.0,92938.0,0.3608]
[1765394035358,0.0107598,92941.0,92938.0,0.37156]
[1765394035861,0.0107598,92940.0,92938.0,0.37356]
[1765394036254,0.0107598,92941.0,92938.0,0.37356]
[1765394036453,0.21730282,92948.0,92938.0,0.3628]
[1765394036653,0.3608,92947.0,92938.0,0.3628]
[1765394037063,0.3608,92947.0,92941.0,0.0107596]
[1765394037364,0.3608,92947.0,92939.0,0.0107599]
[1765394037365,0.0107596,92942.0,92939.0,0.0107599]
[1765394037864,0.0107594,92944.0,92938.0,0.3628]
[1765394038163,0.0107594,92944.0,92941.0,0.0107596]
[1765394038355,0.0107603,92937.0,92934.0,0.0107604]
[1765394038555,0.0107607,92932.0,92931.0,0.35205]
[1765394038753,0.21730282,92944.0,92930.0,0.0001614]
[1765394038957,0.0107603,92936.0,92935.0,0.0107603]
[1765394039350,0.3715591,92947.0,92945.0,0.0107591]
[1765394039664,0.0001614,92949.0,92930.0,0.0001614]
[1765394039665,0.0109202,92949.0,92947.0,0.0107589]
[1765394039865,0.0107593,92945.0,92944.0,0.0107593]
[1765394040065,0.0107597,92942.0,92941.0,0.3628096]
[1765394040452,0.0107593,92945.0,92944.0,0.7092893]
[1765394040661,0.0001614,92949.0,92948.0,0.69853]
[1765394040863,0.3608,92974.0,92967.0,0.69853]
[1765394041059,0.0107528,93001.0,92981.0,0.69853]
[1765394041255,0.3608,92998.0,92997.0,0.69853]
[1765394041459,0.0107519,93009.0,93004.0,0.3628023]
[1765394041752,0.3608,93022.0,93021.0,0.35205]
[1765394041959,0.3608,93022.0,93017.0,0.0107508]
[1765394042156,0.3608,93022.0,93021.0,0.35205]
[1765394042359,0.3608,93022.0,93012.0,0.0001613]
[1765394042360,0.0001613,93031.0,93026.0,0.7092798]
[1765394042562,0.0001613,93031.0,93026.0,1.0700798]
[1765394043468,0.0107468,93053.0,93026.0,0.3715498]
[1765394043768,0.22805002,93050.0,93034.0,0.3608]
[1765394043962,0.0107466,93054.0,93034.0,0.3608]
[1765394044158,0.3608,93059.0,93044.0,0.3608]
[1765394044355,0.00016121,93061.0,93049.0,0.0107471]
[1765394044555,0.21730282,93060.0,93052.0,0.3608]
[1765394044759,0.0107459,93060.0,93053.0,0.0107467]
[1765394044966,0.00016121,93061.0,93053.0,0.0107467]
[1765394045170,0.00016121,93061.0,93052.0,0.3608]
[1765394045754,0.00016121,93061.0,93060.0,0.69853]
[1765394045959,0.0107438,93078.0,93062.0,0.19688]
[1765394046165,0.0107438,93078.0,93077.0,0.35205]
[1765394046475,0.0107428,93088.0,93071.0,0.3608]
[1765394046764,0.0107421,93094.0,93086.0,0.3608]
[1765394046963,0.21730282,93100.0,93086.0,0.3608]
[1765394046964,0.3608,93109.0,93086.0,0.3608]
[1765394047161,0.00016121,93099.0,93098.0,0.69853]
[1765394047868,0.0107424,93091.0,93086.0,0.001]
[1765394048074,0.3715424,93091.0,93086.0,0.001]
[1765394048577,0.6784634,93082.0,93081.0,0.00016121]
[1765394048866,0.6784634,93082.0,93045.0,0.3608]
[1765394048867,0.21730282,93080.0,93079.0,0.35205]
[1765394049063,0.0107442,93075.0,93074.0,0.35205]
[1765394049370,0.0107442,93075.0,93060.0,0.19688]
[1765394049371,0.0107435,93082.0,93081.0,0.68538]
[1765394050962,0.3608,93087.0,93086.0,0.68538]
[1765394051463,0.01090352,93091.0,93086.0,0.68538]
[1765394051773,0.01090352,93091.0,93090.0,0.33001]
[1765394051975,0.0107395,93116.0,93101.0,0.68538]
[1765394052270,0.21730282,93120.0,93110.0,0.3608]
[1765394052476,0.21730282,93120.0,93100.0,0.20066]
[1765394052477,0.3608,93118.0,93100.0,0.20066]
[1765394052773,0.21730282,93120.0,93109.0,0.68538]
[1765394053076,0.0107406,93106.0,93105.0,0.00016112]
[1765394053263,0.0107401,93111.0,93110.0,0.33001]
[1765394053573,0.3715401,93111.0,93110.0,0.68538]
[1765394053967,0.0107406,93106.0,93105.0,0.00016112]
[1765394054163,0.3541006,93106.0,93105.0,0.00016112]
[1765394054472,0.0107406,93106.0,93105.0,0.00016112]
[1765394054671,0.01074,93112.0,93111.0,0.68538]
[1765394054977,0.34336,93111.0,93110.0,0.001]
[1765394055372,0.70099,93111.0,93110.0,0.001]
[1765394056160,0.70099,93111.0,93105.0,0.00016112]
[1765394056365,0.0187406,93106.0,93105.0,0.00116112]
[1765394056977,0.0187406,93106.0,93105.0,0.33117112]
[1765394057474,0.0107406,93106.0,93105.0,0.00016112]
[1765394057673,0.0107406,93106.0,93076.0,0.3608]
[1765394057674,0.010743,93085.0,93076.0,0.3608]
[1765394057873,0.0107406,93106.0,93084.0,1.04618]
[1765394057874,0.0107426,93089.0,93084.0,1.04618]
[1765394058174,0.0107426,93089.0,93055.0,0.0107464]
[1765394058175,0.34336,93076.0,93075.0,0.3608]
[1765394058372,0.3541041,93076.0,93075.0,0.3608]
[1765394058876,0.7117351,93067.0,93066.0,0.00016112]
[1765394059061,0.0107451,93067.0,93066.0,0.00016112]
[1765394059466,0.3541051,93067.0,93066.0,0.00016112]
[1765394059664,0.0107451,93067.0,93066.0,0.00016112]
[1765394059877,0.010745,93069.0,93066.0,0.68554112]
[1765394060365,0.10745004,93075.0,93074.0,0.68538]
[1765394060566,0.0107439,93078.0,93074.0,0.33001]
[1765394060771,0.0107441,93076.0,93068.0,0.3715449]
[1765394061075,0.0107442,93076.0,93068.0,0.371545]
[1765394061369,0.00016112,93085.0,93077.0,0.68538]
[1765394061573,0.00016112,93085.0,93084.0,0.6961232]
[1765394062171,0.00016112,93085.0,93084.0,0.68538]
[1765394062970,0.0107403,93109.0,93105.0,0.68538]
[1765394063477,0.0107403,93109.0,93108.0,0.33001]
[1765394064374,0.0107411,93102.0,93101.0,0.3608]
[1765394064677,0.0107406,93106.0,93105.0,0.68538]
[1765394065276,0.009,93109.0,93108.0,0.33001]
[1765394065470,0.009,93109.0,93108.0,0.68538]
[1765394065670,0.0107404,93108.0,93105.0,0.001]
[1765394065872,0.0107407,93105.0,93101.0,0.3608]
[1765394067465,0.0107411,93102.0,93101.0,0.3608]
[1765394067669,0.7117311,93102.0,93101.0,0.3608]
[1765394068472,0.7117311,93102.0,93073.0,0.3608]
[1765394068473,0.86716,93100.0,93073.0,0.3608]
[1765394068682,0.0107452,93066.0,93062.0,0.3608]
[1765394068976,0.0107434,93082.0,93062.0,0.3608]
[1765394068977,0.0107456,93063.0,93062.0,0.3608]
[1765394069175,0.6873756,93063.0,93062.0,0.3608]
[1765394069376,0.6873756,93063.0,93044.0,0.3608]
[1765394069377,0.0107472,93049.0,93044.0,0.3608]
[1765394069585,0.00016121,93056.0,93044.0,0.3608]
[1765394069775,0.21730282,93054.0,93044.0,0.3608]
[1765394069970,0.0107472,93050.0,93049.0,0.3449]
[1765394070268,0.0107472,93050.0,93044.0,0.3608]
[1765394070269,1.21e-06,93056.0,93055.0,0.6886465]
[1765394070475,0.3608,93088.0,93079.0,0.6779]
[1765394070669,0.3608,93088.0,93079.0,0.6886437]
[1765394070883,0.3608,93088.0,93083.0,0.0107433]
[1765394070884,0.0107428,93087.0,93083.0,0.0107433]
[1765394071066,0.21730282,93100.0,93085.0,0.3608]
[1765394071271,0.0107417,93097.0,93085.0,0.3608]
[1765394071466,0.3608,93106.0,93085.0,0.3608]
[1765394071467,0.00016112,93102.0,93101.0,0.6779]
[1765394071669,0.00016112,93102.0,93101.0,0.3449]
[1765394071884,0.010742,93095.0,93093.0,0.3608]
[1765394072072,0.0107419,93095.0,93094.0,0.3449]
[1765394072266,0.00016112,93102.0,93085.0,0.3608]
[1765394072267,0.0107423,93091.0,93085.0,0.3608]
[1765394072465,0.22804472,93095.0,93085.0,0.371543]
[1765394073075,0.23504472,93095.0,93085.0,0.371543]
[1765394073272,0.22430282,93095.0,93085.0,0.3608]
[1765394073781,0.0107429,93086.0,93085.0,0.3608]
[1765394073979,0.0107429,93086.0,93083.0,0.00016112]
[1765394074682,0.3608,93089.0,93083.0,0.00016112]
[1765394075072,0.0107431,93085.0,93083.0,0.00016112]
[1765394075680,0.004,93086.0,93083.0,0.00016112]
[1765394076084,0.010743,93085.0,93083.0,0.00016112]
[1765394076285,0.004,93085.0,93084.0,1.0387]
[1765394077072,0.014743,93085.0,93084.0,1.0387]
[1765394077281,0.014743,93085.0,93083.0,0.00016112]
[1765394077785,0.010743,93085.0,93083.0,0.00016112]
[1765394078487,0.67663,93084.0,93083.0,0.00016112]
[1765394079387,0.0107458,93062.0,93056.0,0.3608]
[1765394079784,0.0107456,93063.0,93059.0,0.010746]
[1765394080086,0.3608,93077.0,93059.0,0.010746]
[1765394080087,0.0107452,93067.0,93059.0,0.010746]
[1765394080286,0.31764848,93070.0,93056.0,0.3608]
[1765394080287,0.67663,93057.0,93056.0,0.3608]
[1765394080491,0.67663,93055.0,93054.0,0.00016112]
[1765394080787,0.0107472,93049.0,93048.0,0.31096112]
[1765394081395,0.0107467,93054.0,93048.0,0.31096112]
[1765394081684,0.3608,93060.0,93048.0,0.31096112]
[1765394081685,0.31764848,93070.0,93058.0,0.0107461]
[1765394081995,0.3608,93068.0,93058.0,0.0107461]
[1765394082191,0.0107453,93066.0,93058.0,0.0107461]
[1765394082387,0.0107456,93063.0,93054.0,0.0107466]
[1765394082591,0.0107451,93067.0,93057.0,0.0107462]
[1765394082781,0.0107455,93064.0,93057.0,0.0107462]
[1765394083394,0.3715451,93068.0,93057.0,0.0107462]
[1765394083595,0.0107451,93068.0,93059.0,0.010746]
[1765394083892,0.32839328,93070.0,93062.0,0.0107456]
[1765394084094,0.0107451,93067.0,93062.0,0.0107456]
[1765394084389,0.0107457,93062.0,93058.0,0.3608]
[1765394084593,0.010747,93052.0,93048.0,0.31096112]
[1765394084791,0.35076,93049.0,93048.0,0.31096112]
[1765394085291,0.010747,93052.0,93048.0,0.31096112]
[1765394085590,0.31764848,93060.0,93055.0,0.3449]
[1765394085798,0.32839448,93060.0,93059.0,0.3449]
[1765394085996,0.0107462,93058.0,93057.0,0.6779]
[1765394086192,0.0107456,93063.0,93058.0,0.3449]
[1765394086398,0.0107455,93064.0,93058.0,0.3608]
[1765394086590,0.0107459,93061.0,93058.0,0.3608]
[1765394087190,0.35076,93059.0,93058.0,0.3608]
[1765394087493,0.3608,93059.0,93048.0,0.31096112]
[1765394087693,0.0107463,93057.0,93048.0,0.31096112]
[1765394087885,0.0107471,93051.0,93048.0,0.31096112]
[1765394088285,0.3608,93059.0,93048.0,0.31096112]
[1765394088498,0.0107461,93059.0,93058.0,0.6779]
[1765394088694,0.31764848,93060.0,93058.0,0.6886461]
[1765394088894,0.0107452,93067.0,93061.0,0.0107457]
[1765394089193,0.31764848,93068.0,93061.0,0.0107457]
[1765394089495,0.0107452,93067.0,93056.0,0.3608]
[1765394089696,0.0107455,93064.0,93060.0,0.0107458]
[1765394090293,0.76093,93081.0,93056.0,0.3608]
[1765394090294,0.31764848,93080.0,93056.0,0.3608]
[1765394090600,0.31764848,93080.0,93071.0,1.0387]
[1765394090801,0.31764848,93080.0,93060.0,0.16187]
[1765394090802,0.0107451,93068.0,93063.0,0.0107455]
[1765394091605,0.0107451,93068.0,93067.0,0.6779]
[1765394091993,0.00316112,93072.0,93070.0,0.0107448]
[1765394092302,0.00316112,93072.0,93066.0,0.3608]
[1765394092502,0.0107449,93070.0,93066.0,0.3608]
[1765394092892,0.00316112,93072.0,93067.0,0.0107451]
[1765394093200,0.002,93068.0,93067.0,0.3449]
[1765394093386,0.002,93068.0,93066.0,0.3715451]
[1765394093891,0.0107451,93067.0,93066.0,0.3608]
[1765394094390,0.0107447,93071.0,93066.0,0.3608]
[1765394095007,0.010745,93069.0,93066.0,0.3608]
[1765394095394,0.00316112,93072.0,93071.0,0.6886447]
[1765394095595,0.0107427,93088.0,93087.0,0.6779]
[1765394095793,0.3608,93100.0,93087.0,1.0494428]
[1765394095794,0.0107424,93091.0,93087.0,1.0494428]
[1765394096197,0.31764848,93097.0,93087.0,1.0494428]
[1765394096198,0.0107427,93089.0,93087.0,1.0494428]
[1765394096395,0.31764848,93097.0,93087.0,0.3608]
[1765394096598,0.0107423,93092.0,93090.0,0.0107424]
[1765394096802,0.0107423,93092.0,93087.0,0.3608]
[1765394097198,0.6873732,93084.0,93083.0,0.00016121]
[1765394097398,1.0481732,93084.0,93083.0,0.00016121]
[1765394097604,0.0107451,93068.0,93063.0,0.0107455]
[1765394097994,0.0107451,93068.0,93059.0,0.3608]
[1765394097995,0.0107442,93075.0,93069.0,0.6956448]
[1765394098198,0.47896497,93084.0,93069.0,0.6849]
[1765394098199,0.31764848,93080.0,93069.0,0.6849]
[1765394098403,0.0107447,93071.0,93069.0,0.3556449]
[1765394099005,0.0107443,93074.0,93069.0,0.3556449]
[1765394099213,0.31764848,93079.0,93067.0,0.3608]
[1765394099501,0.01390441,93084.0,93083.0,0.67028]
[1765394099702,0.01090441,93084.0,93083.0,0.67028]
[1765394100306,0.00016121,93084.0,93067.0,0.3608]
[1765394100506,0.0107445,93073.0,93069.0,0.0107448]
[1765394100710,0.0107441,93076.0,93075.0,0.67028]
[1765394101007,0.7003352,93066.0,93046.0,0.3608]
[1765394101202,0.7003374,93047.0,93046.0,0.3608]
[1765394101403,0.0107485,93038.0,93036.0,0.3608]
[1765394101703,0.0107461,93059.0,93041.0,0.0107481]
[1765394102008,0.010746,93060.0,93059.0,0.67028]
[1765394102204,0.010746,93060.0,93057.0,0.0107462]
[1765394102205,0.0107466,93054.0,93053.0,0.3608]
[1765394102394,0.010747,93051.0,93050.0,0.33044121]
[1765394102600,0.10748411,93060.0,93050.0,0.33044121]
[1765394102803,0.0107467,93053.0,93050.0,0.00016121]
[1765394103004,0.68959,93051.0,93050.0,0.00016121]
[1765394103500,0.7003377,93045.0,93044.0,0.3608]
[1765394103709,0.7003377,93045.0,93044.0,1.03108]
[1765394103710,0.0107477,93045.0,93044.0,1.03108]
[1765394103913,0.3608,93052.0,93051.0,0.67028]
[1765394104112,0.88384,93061.0,93044.0,0.3608]
[1765394104113,0.31864848,93060.0,93056.0,0.33028]
[1765394104309,0.010746,93059.0,93056.0,0.67028]
[1765394104515,0.010746,93059.0,93053.0,0.0107467]
[1765394104516,0.001,93060.0,93059.0,0.67028]
[1765394104717,0.0117459,93060.0,93059.0,0.67028]
[1765394104910,0.0107472,93049.0,93048.0,0.00016121]
[1765394105516,0.0107457,93062.0,93061.0,0.67028]
[1765394105818,0.00016121,93069.0,93068.0,0.33028]
[1765394106017,0.00016121,93069.0,93068.0,0.69108]
[1765394106218,0.68975121,93069.0,93068.0,0.3608]
[1765394106416,0.00016121,93069.0,93067.0,0.33028]
[1765394106727,0.00016121,93069.0,93068.0,0.67028]
[1765394107024,0.00116121,93069.0,93068.0,0.67028]
[1765394107325,0.00116121,93069.0,93068.0,1.39188]
[1765394108131,0.01190611,93069.0,93068.0,1.03108]
[1765394108318,0.0107453,93066.0,93060.0,0.3608]
[1765394108717,0.00116121,93069.0,93060.0,0.3608]
[1765394108929,0.00116121,93069.0,93042.0,0.3608]
[1765394108930,0.7003372,93049.0,93042.0,0.3608]
[1765394109130,0.00116121,93069.0,93059.0,0.33028]
[1765394109131,0.010746,93060.0,93059.0,0.33028]
[1765394109425,0.010746,93060.0,93042.0,0.3608]
[1765394109426,0.3608,93062.0,93042.0,0.3608]
[1765394109621,0.0107466,93054.0,93053.0,0.67103]
[1765394109929,0.0107466,93054.0,93048.0,0.01090851]
[1765394110716,0.0107471,93050.0,93048.0,0.00016121]
[1765394111121,0.0107469,93052.0,93048.0,0.34319121]
[1765394111329,0.0107469,93052.0,93051.0,0.67103]